fUSD/lending_fUSD_20240428
["ID","MTS","AMOUNT","RATE_DAILY","PERIOD"]
[324793945,1714335079944,-500.0,0.0001178,2]
[324793946,1714335079953,-500.0,0.0001178,2]
[324793947,1714335079963,-632.72,0.0001178,2]
[324793948,1714335079972,-190.425428,0.0001178,2]
[324793949,1714335079981,-500.0,0.0001178,2]
[324793950,1714335079990,-500.0,0.0001178,2]
[324793951,1714335080000,-190.425428,0.0001178,2]
[324793952,1714335080009,-500.0,0.0001178,2]
[324793953,1714335080019,-500.0,0.0001178,2]
[324793954,1714335080028,-662.93,0.0001178,2]
[324793955,1714335080037,-500.0,0.0001178,2]
[324793956,1714335080046,-502.97712739,0.0001178,2]
[324793957,1714335080056,-914.28,0.0001178,2]
[324793958,1714335080065,-500.0,0.0001178,2]
[324793959,1714335080075,-151.0,0.0001178,2]
[324793960,1714335080084,-159.77520798,0.0001178,2]
[324793961,1714335080093,-500.0,0.0001178,2]
[324793962,1714335080103,-500.0,0.0001178,2]
[324793963,1714335080112,-200.224369,0.0001178,2]
[324793964,1714335080121,-3422.18,0.0001178,2]
[324793965,1714335080130,-500.0,0.0001178,2]
[324793966,1714335080139,-500.0,0.0001178,2]
[324793967,1714335080148,-500.0,0.0001178,2]
[324793968,1714335080158,-500.0,0.0001178,2]
[324793969,1714335080167,-500.0,0.0001178,2]
[324793970,1714335080176,-767.88,0.0001178,2]
[324793971,1714335080185,-500.0,0.0001178,2]
[324793972,1714335080195,-157.18714417,0.0001178,2]
[324793973,1714335080204,-500.0,0.0001178,2]
[324793974,1714335080214,-735.24,0.0001178,2]
[324793975,1714335080223,-706.69,0.0001178,2]
[324793976,1714335080232,-500.0,0.0001178,2]
[324793977,1714335080242,-151.0,0.0001178,2]
[324793978,1714335080252,-500.0,0.0001178,2]
[324793979,1714335080261,-259.650878,0.0001178,2]
[324793980,1714335080271,-1342.45,0.0001178,2]
[324793981,1714335080281,-533.84,0.0001178,2]
[324793982,1714335080290,-788.02,0.0001178,2]
[324793983,1714335080300,-2092.94,0.0001178,2]
[324793984,1714335080310,-259.650878,0.0001178,2]
[324793985,1714335080319,-151.0,0.0001178,2]
[324793986,1714335080329,-500.0,0.0001178,2]
[324793987,1714335080339,-2167.16,0.0001178,2]
[324793988,1714335080348,-554.604274,0.0001178,2]
[324793989,1714335080358,-1698.03,0.0001178,2]
[324793990,1714335080367,-151.0,0.0001178,2]
[324793991,1714335080377,-500.0,0.0001178,2]
[324793992,1714335080391,-500.0,0.0001178,2]
[324793993,1714335080400,-500.0,0.0001178,2]
[324793994,1714335080410,-1776.941553,0.0001178,2]
[324793995,1714335080419,-554.604274,0.0001178,2]
[324793996,1714335080428,-500.0,0.0001178,2]
[324793997,1714335080438,-500.0,0.0001178,2]
[324793998,1714335080447,-621.48774839,0.0001178,2]
[324793999,1714335080456,-5663.56,0.0001178,2]
[324794000,1714335080468,-500.0,0.0001178,2]
[324794001,1714335080478,-500.0,0.0001178,2]
[324794002,1714335080488,-1776.941553,0.0001178,2]
[324794003,1714335080498,-500.0,0.0001178,2]
[324794004,1714335080508,-709.07,0.0001178,2]
[324794005,1714335080518,-500.0,0.0001178,2]
[324794006,1714335080528,-500.0,0.0001178,2]
[324794007,1714335080538,-5318.53,0.0001178,2]
[324794008,1714335080548,-505.06489058,0.0001178,2]
[324794009,1714335080558,-500.0,0.0001178,2]
[324794010,1714335080567,-500.0,0.0001178,2]
[324794011,1714335080576,-500.0,0.0001178,2]
[324794012,1714335080586,-503.51906711,0.0001178,2]
[324794013,1714335080595,-576.42,0.0001178,2]
[324794014,1714335080605,-500.0,0.0001178,2]
[324794015,1714335080615,-673.78,0.0001178,2]
[324794016,1714335080624,-730.03,0.0001178,2]
[324794017,1714335080634,-500.0,0.0001178,2]
[324794018,1714335080643,-500.0,0.0001178,2]
[324794019,1714335080653,-1119.99,0.0001178,2]
[324794020,1714335080663,-500.0,0.0001178,2]
[324794021,1714335080673,-3883.79,0.0001178,2]
[324794022,1714335080683,-500.0,0.0001178,2]
[324794023,1714335080692,-500.0,0.0001178,2]
[324794024,1714335080701,-4497.99,0.0001178,2]
[324794025,1714335080711,-151.0,0.0001178,2]
[324794026,1714335080720,-500.0,0.0001178,2]
[324794027,1714335080729,-1502.91,0.0001178,2]
[324794028,1714335080739,-500.0,0.0001178,2]
[324794029,1714335080749,-500.0,0.0001178,2]
[324794030,1714335080759,-505.03,0.0001178,2]
[324794031,1714335080768,-1373.5,0.0001178,2]
[324794032,1714335080777,-1354.41,0.0001178,2]
[324794033,1714335080787,-10290.32,0.0001178,2]
[324794034,1714335080796,-1071.21,0.0001178,2]
[324794035,1714335080805,-2176.76,0.0001178,2]
[324794036,1714335080814,-500.0,0.0001178,2]
[324794037,1714335080823,-500.0,0.0001178,2]
[324794038,1714335080833,-639.11,0.0001178,2]
[324794039,1714335080842,-500.0,0.0001178,2]
[324794040,1714335080851,-500.0,0.0001178,2]
[324794041,1714335080860,-500.0,0.0001178,2]
[324794042,1714335080870,-1877.516642,0.0001178,2]
[324794043,1714335080880,-500.0,0.0001178,2]
[324794044,1714335080888,-500.0,0.0001178,2]
[324794045,1714335080898,-1357.3,0.0001178,2]
[324794046,1714335080907,-500.0,0.0001178,2]
[324794047,1714335080917,-8156.81,0.0001178,2]
[324794048,1714335080927,-1877.516642,0.0001178,2]
[324794049,1714335080936,-500.0,0.0001178,2]
[324794050,1714335080945,-500.0,0.0001178,2]
[324794051,1714335080954,-583.22,0.0001178,2]
[324794052,1714335080964,-580.74,0.0001178,2]
[324794053,1714335080974,-1739.27,0.0001178,2]
[324794054,1714335080983,-500.0,0.0001178,2]
[324794055,1714335080993,-1338.92,0.0001178,2]
[324794056,1714335081002,-500.0,0.0001178,2]
[324794057,1714335081011,-500.0,0.0001178,2]
[324794058,1714335081021,-500.0,0.0001178,2]
[324794059,1714335081030,-1602.59,0.0001178,2]
[324794060,1714335081039,-151.0,0.0001178,2]
[324794061,1714335081049,-500.0,0.0001178,2]
[324794062,1714335081058,-500.0,0.0001178,2]
[324794063,1714335081068,-3585.18,0.0001178,2]
[324794064,1714335081077,-625.43851315,0.0001178,2]
[324794065,1714335081086,-3404.45,0.0001178,2]
[324794066,1714335081095,-3861.32,0.0001178,2]
[324794067,1714335081105,-500.0,0.0001178,2]
[324794068,1714335081114,-584.32,0.0001178,2]
[324794069,1714335081124,-500.0,0.0001178,2]
[324794070,1714335081133,-1528.83,0.0001178,2]
[324794071,1714335081142,-2219.685263,0.0001178,2]
[324794072,1714335081152,-1912.47,0.0001178,2]
[324794073,1714335081162,-500.0,0.0001178,2]
[324794074,1714335081171,-500.0,0.0001178,2]
[324794075,1714335081180,-500.0,0.0001178,2]
[324794076,1714335081189,-500.0,0.0001178,2]
[324794077,1714335081199,-2219.685263,0.0001178,2]
[324794078,1714335081209,-530.84,0.0001178,2]
[324794079,1714335081219,-500.0,0.0001178,2]
[324794080,1714335081228,-1414.12,0.0001178,2]
[324794081,1714335081238,-500.0,0.0001178,2]
[324794082,1714335081247,-1402.340596,0.0001178,2]
[324794083,1714335081258,-500.0,0.0001178,2]
[324794084,1714335081267,-500.0,0.0001178,2]
[324794085,1714335081277,-4357.97,0.0001178,2]
[324794086,1714335081442,-1402.340596,0.0001178,2]
[324794087,1714335081452,-3715.69,0.0001178,2]
[324794088,1714335081463,-914.96,0.0001178,2]
[324794089,1714335081472,-556.03,0.0001178,2]
[324794090,1714335081481,-206.14179409,0.0001178,2]
[324794091,1714335081491,-500.0,0.0001178,2]
[324794092,1714335081500,-2110.76,0.0001178,2]
[324794093,1714335081509,-500.0,0.0001178,2]
[324794094,1714335081519,-500.0,0.0001178,2]
[324794095,1714335081528,-500.0,0.0001178,2]
[324794096,1714335081537,-500.0,0.0001178,2]
[324794097,1714335081547,-500.0,0.0001178,2]
[324794098,1714335081556,-4413.77,0.0001178,2]
[324794099,1714335081568,-162.373722,0.0001178,2]
[324794100,1714335081578,-500.0,0.0001178,2]
[324794101,1714335081587,-500.0,0.0001178,2]
[324794102,1714335081596,-660.54,0.0001178,2]
[324794103,1714335081605,-1063.45,0.0001178,2]
[324794104,1714335081615,-151.0,0.0001178,2]
[324794105,1714335081624,-540.03,0.0001178,2]
[324794106,1714335081634,-162.373722,0.0001178,2]
[324794107,1714335081643,-500.0,0.0001178,2]
[324794108,1714335081652,-10713.43,0.0001178,2]
[324794109,1714335081662,-500.0,0.0001178,2]
[324794110,1714335081671,-500.0,0.0001178,2]
[324794111,1714335081680,-151.0,0.0001178,2]
[324794112,1714335081690,-500.0,0.0001178,2]
[324794113,1714335081699,-500.0,0.0001178,2]
[324794114,1714335081708,-777.04,0.0001178,2]
[324794115,1714335081719,-584.78,0.0001178,2]
[324794116,1714335081728,-500.0,0.0001178,2]
[324794117,1714335081738,-2092.03,0.0001178,2]
[324794118,1714335081747,-2059.96,0.0001178,2]
[324794119,1714335081757,-500.0,0.0001178,2]
[324794120,1714335081766,-674.68,0.0001178,2]
[324794121,1714335081776,-6179.61,0.0001178,2]
[324794122,1714335081785,-7807.56,0.0001178,2]
[324794123,1714335081795,-1071.510703,0.0001178,2]
[324794124,1714335081807,-1585.49,0.0001178,2]
[324794125,1714335081816,-522.18,0.0001178,2]
[324794126,1714335081825,-500.0,0.0001178,2]
[324794127,1714335081835,-500.0,0.0001178,2]
[324794128,1714335081843,-644.87,0.0001178,2]
[324794129,1714335081853,-1071.510703,0.0001178,2]
[324794130,1714335081862,-500.0,0.0001178,2]
[324794131,1714335081872,-1634.43,0.0001178,2]
[324794132,1714335081881,-500.0,0.0001178,2]
[324794133,1714335081890,-270.937038,0.0001178,2]
[324794134,1714335081900,-500.0,0.0001178,2]
[324794135,1714335081909,-889.84,0.0001178,2]
[324794136,1714335081919,-1305.51,0.0001178,2]
[324794137,1714335081928,-500.0,0.0001178,2]
[324794138,1714335081938,-500.0,0.0001178,2]
[324794139,1714335081947,-7923.02,0.0001178,2]
[324794140,1714335081956,-560.52,0.0001178,2]
[324794141,1714335081966,-391.27,0.0001178,2]
[324794142,1714335081975,-270.937038,0.0001178,2]
[324794143,1714335081985,-7586.52,0.0001178,2]
[324794144,1714335081994,-590.45,0.0001178,2]
[324794145,1714335082004,-500.0,0.0001178,2]
[324794146,1714335082013,-500.0,0.0001178,2]
[324794147,1714335082023,-500.0,0.0001178,2]
[324794148,1714335082032,-2933.808158,0.0001178,2]
[324794149,1714335082041,-500.0,0.0001178,2]
[324794150,1714335082050,-500.0,0.0001178,2]
[324794151,1714335082060,-585.65,0.0001178,2]
[324794152,1714335082069,-500.0,0.0001178,2]
[324794153,1714335082078,-2052.98,0.0001178,2]
[324794154,1714335082088,-679.49,0.0001178,2]
[324794155,1714335082098,-151.0,0.0001178,2]
[324794156,1714335082108,-511.46,0.0001178,2]
[324794157,1714335082118,-585.79,0.0001178,2]
[324794158,1714335082128,-5227.15,0.0001178,2]
[324794159,1714335082138,-550.705949,0.0001178,2]
[324794160,1714335082147,-2933.808158,0.0001178,2]
[324794161,1714335082156,-500.0,0.0001178,2]
[324794162,1714335082165,-1925.76,0.0001178,2]
[324794163,1714335082174,-500.0,0.0001178,2]
[324794164,1714335082183,-537.66,0.0001178,2]
[324794165,1714335082194,-500.0,0.0001178,2]
[324794166,1714335082203,-3698.54,0.0001178,2]
[324794167,1714335082212,-1470.84,0.0001178,2]
[324794168,1714335082221,-911.54,0.0001178,2]
[324794169,1714335082231,-537.76,0.0001178,2]
[324794170,1714335082240,-1419.51,0.0001178,2]
[324794171,1714335082249,-321.367418,0.0001178,2]
[324794172,1714335082258,-151.0,0.0001178,2]
[324794173,1714335082267,-500.0,0.0001178,2]
[324794174,1714335082276,-550.705949,0.0001178,2]
[324794175,1714335082286,-318.996419,0.0001178,2]
[324794176,1714335082295,-500.0,0.0001178,2]
[324794177,1714335082315,-854.24,0.0001178,2]
[324794178,1714335082326,-1077.75,0.0001178,2]
[324794179,1714335082335,-321.367418,0.0001178,2]
[324794180,1714335082345,-151.0,0.0001178,2]
[324794181,1714335082354,-500.0,0.0001178,2]
[324794182,1714335082364,-318.996419,0.0001178,2]
[324794183,1714335082373,-2717.25,0.0001178,2]
[324794184,1714335082386,-530.39,0.0001178,2]
[324794185,1714335082395,-4094.38,0.0001178,2]
[324794186,1714335082406,-500.0,0.0001178,2]
[324794187,1714335082415,-579.048538,0.0001178,2]
[324794188,1714335082427,-947.74,0.0001178,2]
[324794189,1714335082437,-1974.12,0.0001178,2]
[324794190,1714335082446,-579.048538,0.0001178,2]
[324794191,1714335082458,-1503.79,0.0001178,2]
[324794192,1714335082469,-1354.91,0.0001178,2]
[324794193,1714335082478,-500.0,0.0001178,2]
[324794194,1714335082488,-1990.76,0.0001178,2]
[324794195,1714335082498,-2218.47,0.0001178,2]
[324794196,1714335082507,-500.0,0.0001178,2]
[324794197,1714335082516,-1792.37,0.0001178,2]
[324794198,1714335082526,-989.54,0.0001178,2]
[324794199,1714335082536,-1852.44,0.0001178,2]
[324794200,1714335082545,-500.0,0.0001178,2]
[324794201,1714335082555,-151.0,0.0001178,2]
[324794202,1714335082564,-2057.04,0.0001178,2]
[324794203,1714335082574,-511.72,0.0001178,2]
[324794204,1714335082583,-500.0,0.0001178,2]
[324794205,1714335082593,-500.0,0.0001178,2]
[324794206,1714335082603,-879.95,0.0001178,2]
[324794207,1714335082612,-6407.06,0.0001178,2]
[324794208,1714335082621,-664.66,0.0001178,2]
[324794209,1714335082630,-2262.97,0.0001178,2]
[324794210,1714335082639,-500.0,0.0001178,2]
[324794211,1714335082648,-3147.07,0.0001178,2]
[324794212,1714335082657,-426.636916,0.0001178,2]
[324794213,1714335082666,-2302.016395,0.0001178,2]
[324794214,1714335082676,-1216.68,0.0001178,2]
[324794215,1714335082685,-500.0,0.0001178,2]
[324794216,1714335082694,-676.6,0.0001178,2]
[324794217,1714335082703,-500.0,0.0001178,2]
[324794218,1714335082713,-518.32,0.0001178,2]
[324794219,1714335082723,-220.022233,0.0001178,2]
[324794220,1714335082732,-426.636916,0.0001178,2]
[324794221,1714335082741,-1929.79,0.0001178,2]
[324794222,1714335082750,-2302.016395,0.0001178,2]
[324794223,1714335082759,-500.0,0.0001178,2]
[324794224,1714335082768,-500.0,0.0001178,2]
[324794225,1714335082778,-3019.82,0.0001178,2]
[324794226,1714335082787,-220.022233,0.0001178,2]
[324794227,1714335082796,-1079.35,0.0001178,2]
[324794228,1714335082806,-500.0,0.0001178,2]
[324794229,1714335082815,-3348.29,0.0001178,2]
[324794230,1714335082824,-604.29,0.0001178,2]
[324794231,1714335082833,-823.29,0.0001178,2]
[324794232,1714335082842,-500.0,0.0001178,2]
[324794233,1714335082851,-563.66,0.0001178,2]
[324794234,1714335082861,-500.0,0.0001178,2]
[324794235,1714335082870,-500.0,0.0001178,2]
[324794236,1714335082879,-1121.23,0.0001178,2]
[324794237,1714335082888,-500.0,0.0001178,2]
[324794238,1714335082897,-6639.12,0.0001178,2]
[324794239,1714335082907,-500.0,0.0001178,2]
[324794240,1714335082916,-500.0,0.0001178,2]
[324794241,1714335082925,-500.0,0.0001178,2]
[324794242,1714335082934,-1327.37,0.0001178,2]
[324794243,1714335082943,-542.65,0.0001178,2]
[324794244,1714335082952,-1829.171623,0.0001178,2]
[324794245,1714335082962,-500.0,0.0001178,2]
[324794246,1714335082972,-764.49,0.0001178,2]
[324794247,1714335082981,-1402.910597,0.0001178,2]
[324794248,1714335082991,-1249.42,0.0001178,2]
[324794249,1714335083000,-1122.94,0.0001178,2]
[324794250,1714335083009,-500.0,0.0001178,2]
[324794251,1714335083018,-619.83,0.0001178,2]
[324794252,1714335083027,-2202.24,0.0001178,2]
[324794253,1714335083036,-365.581841,0.0001178,2]
[324794254,1714335083045,-823.96,0.0001178,2]
[324794255,1714335083055,-1829.171623,0.0001178,2]
[324794256,1714335083064,-1402.910597,0.0001178,2]
[324794257,1714335083074,-500.0,0.0001178,2]
[324794258,1714335083083,-365.581841,0.0001178,2]
[324794259,1714335083092,-2697.02,0.0001178,2]
[324794260,1714335083101,-500.0,0.0001178,2]
[324794261,1714335083111,-2085.16,0.0001178,2]
[324794262,1714335083120,-532.18,0.0001178,2]
[324794263,1714335083129,-500.0,0.0001178,2]
[324794264,1714335083138,-500.0,0.0001178,2]
[324794265,1714335083148,-500.0,0.0001178,2]
[324794266,1714335083157,-221.722352,0.0001178,2]
[324794267,1714335083167,-2495.22,0.0001178,2]
[324794268,1714335083177,-500.0,0.0001178,2]
[324794269,1714335083186,-2332.66,0.0001178,2]
[324794270,1714335083196,-500.0,0.0001178,2]
[324794271,1714335083207,-500.0,0.0001178,2]
[324794272,1714335083219,-1688.86,0.0001178,2]
[324794273,1714335083229,-526.3302765,0.0001178,2]
[324794274,1714335083240,-221.722352,0.0001178,2]
[324794275,1714335083250,-500.0,0.0001178,2]
[324794276,1714335083259,-302.45782,0.0001178,2]
[324794277,1714335083271,-500.0,0.0001178,2]
[324794278,1714335083280,-500.0,0.0001178,2]
[324794279,1714335083290,-1499.38,0.0001178,2]
[324794280,1714335083300,-724.01,0.0001178,2]
[324794281,1714335083309,-504.15893976,0.0001178,2]
[324794282,1714335083319,-500.0,0.0001178,2]
[324794283,1714335083328,-5656.14,0.0001178,2]
[324794284,1714335083338,-3315.89,0.0001178,2]
[324794285,1714335083347,-302.45782,0.0001178,2]
[324794286,1714335083357,-206.43420792,0.0001178,2]
[324794287,1714335083368,-938.48,0.0001178,2]
[324794288,1714335083379,-500.0,0.0001178,2]
[324794289,1714335083391,-2106.68,0.0001178,2]
[324794290,1714335083401,-509.78897295,0.0001178,2]
[324794291,1714335083410,-594.41,0.0001178,2]
[324794292,1714335083419,-607.53,0.0001178,2]
[324794293,1714335083429,-500.0,0.0001178,2]
[324794294,1714335083438,-931.18,0.0001178,2]
[324794295,1714335083447,-500.0,0.0001178,2]
[324794296,1714335083457,-500.0,0.0001178,2]
[324794297,1714335083470,-500.0,0.0001178,2]
[324794298,1714335083479,-500.0,0.0001178,2]
[324794299,1714335083489,-500.0,0.0001178,2]
[324794300,1714335083498,-500.0,0.0001178,2]
[324794301,1714335083509,-504.62885432,0.0001178,2]
[324794302,1714335083519,-500.0,0.0001178,2]
[324794303,1714335083529,-2112.21,0.0001178,2]
[324794304,1714335083540,-4585.17,0.0001178,2]
[324794305,1714335083550,-500.0,0.0001178,2]
[324794306,1714335083560,-500.0,0.0001178,2]
[324794307,1714335083570,-255.01,0.0001178,2]
[324794308,1714335083580,-765.05,0.0001178,2]
[324794309,1714335083590,-151.0,0.0001178,2]
[324794310,1714335083600,-500.0,0.0001178,2]
[324794311,1714335083610,-151.0,0.0001178,2]
[324794312,1714335083620,-503.18916986,0.0001178,2]
[324794313,1714335083630,-936.743565,0.0001178,2]
[324794314,1714335083639,-500.0,0.0001178,2]
[324794315,1714335083648,-500.0,0.0001178,2]
[324794316,1714335083657,-500.0,0.0001178,2]
[324794317,1714335083666,-500.0,0.0001178,2]
[324794318,1714335083675,-500.0,0.0001178,2]
[324794319,1714335083684,-500.0,0.0001178,2]
[324794320,1714335083693,-2210.179829,0.0001178,2]
[324794321,1714335083702,-500.0,0.0001178,2]
[324794322,1714335083711,-936.743565,0.0001178,2]
[324794323,1714335083721,-500.0,0.0001178,2]
[324794324,1714335083731,-500.0,0.0001178,2]
[324794325,1714335083740,-2559.64,0.0001178,2]
[324794326,1714335083749,-151.0,0.0001178,2]
[324794327,1714335083758,-500.0,0.0001178,2]
[324794328,1714335083767,-151.0,0.0001178,2]
[324794329,1714335083777,-500.0,0.0001178,2]
[324794330,1714335083787,-500.0,0.0001178,2]
[324794331,1714335083796,-518.82,0.0001178,2]
[324794332,1714335083805,-2155.7783167,0.0001178,2]
[324794333,1714335084545,-54.4015123,0.0001178,2]
[324794334,1714335084555,-500.0,0.0001178,2]
[324794335,1714335084564,-168.12623389,0.0001178,2]
[324794336,1714335084576,-331.87376611,0.0001178,2]
[324794337,1714335084595,-2298.17921255,0.00011936,2]
[324794338,1714335084621,-617.85698345,0.00011936,2]
[324794339,1714335084645,-321.445025,0.00011936,2]
[324794340,1714335084671,-1404.18601963,0.00011936,2]
[324794341,1714335084693,-1163.14,0.00011999,2]
[324794342,1714335084713,-2040.85316132,0.00012,2]
[324794343,1714335084732,-22312.86535287,0.00012,2]
[324794344,1714335084760,-2406.83083897,0.00012,2]
[324794345,1714335084779,-8731.76781148,0.00012,2]
[324794346,1714335084792,-20199.64106413,0.00012,2]
[324794347,1714335084801,-5000.0,0.00012,2]
[324794348,1714335084811,-1000.0,0.00012,2]
[324794349,1714335084820,-1000.0,0.00012,2]
[324794350,1714335084830,-1402.910597,0.00012,2]
[324794351,1714335084840,-365.581841,0.00012,2]
[324794352,1714335084849,-1402.910597,0.00012,2]
[324794353,1714335084859,-365.581841,0.00012,2]
[324794354,1714335084869,-221.722352,0.00012,2]
[324794355,1714335084879,-221.722352,0.00012,2]
[324794356,1714335084889,-1000.0,0.00012,3]
[324794357,1714335084898,-2210.179829,0.00012,2]
[324794358,1714335084908,-2210.179829,0.00012,2]
[324794359,1714335084917,-4055.54587948,0.00012016,2]
[324794360,1714335084927,-188.28153058,0.00012016,2]
[324794361,1714335084937,-158.9,0.00012033,2]
[324794362,1714335084947,-2934.53,0.00012053,2]
[324794363,1714335084956,-500.0,0.00012053,2]
[324794364,1714335084966,-500.0,0.00012053,2]
[324794365,1714335084977,-1163.14,0.00012053,2]
[324794366,1714335084986,-500.0,0.00012054,2]
[324794367,1714335084995,-500.0,0.00012054,2]
[324794368,1714335085005,-500.0,0.00012054,2]
[324794369,1714335085015,-500.0,0.00012054,2]
[324794370,1714335085024,-500.0,0.00012054,2]
[324794371,1714335085034,-500.0,0.00012054,2]
[324794372,1714335085043,-500.0,0.00012054,2]
[324794373,1714335085052,-500.0,0.00012054,2]
[324794374,1714335085062,-500.0,0.00012054,2]
[324794375,1714335085072,-500.0,0.00012054,2]
[324794376,1714335085082,-500.0,0.00012054,2]
[324794377,1714335085092,-500.0,0.00012054,2]
[324794378,1714335085102,-500.0,0.00012054,2]
[324794379,1714335085111,-589.08,0.00012054,2]
[324794380,1714335085120,-500.0,0.00012054,2]
[324794381,1714335085130,-500.0,0.00012054,2]
[324794382,1714335085140,-554.2,0.00012054,2]
[324794383,1714335085149,-500.0,0.00012054,2]
[324794384,1714335085159,-500.0,0.00012054,2]
[324794385,1714335085168,-513.46,0.00012054,2]
[324794386,1714335085177,-500.0,0.00012054,2]
[324794387,1714335085187,-500.0,0.00012054,2]
[324794388,1714335085196,-500.0,0.00012054,2]
[324794389,1714335085205,-500.0,0.00012054,2]
[324794390,1714335085214,-500.0,0.00012054,2]
[324794391,1714335085226,-500.0,0.00012054,2]
[324794392,1714335085235,-500.0,0.00012054,2]
[324794393,1714335085244,-500.0,0.00012054,2]
[324794394,1714335085253,-500.0,0.00012054,2]
[324794395,1714335085263,-500.0,0.00012054,2]
[324794396,1714335085272,-500.0,0.00012054,2]
[324794397,1714335085281,-500.0,0.00012054,2]
[324794398,1714335085291,-484.29,0.00012054,2]
[324794399,1714335085300,-430.38,0.00012054,2]
[324794400,1714335085309,-500.0,0.00012054,2]
[324794401,1714335085319,-500.0,0.00012054,2]
[324794402,1714335085328,-500.0,0.00012054,2]
[324794403,1714335085338,-500.0,0.00012054,2]
[324794404,1714335085347,-500.0,0.00012054,2]
[324794405,1714335085356,-500.0,0.00012054,2]
[324794406,1714335085366,-619.56,0.00012054,2]
[324794407,1714335085375,-500.0,0.00012054,2]
[324794408,1714335085386,-712.87,0.00012054,2]
[324794409,1714335085397,-500.0,0.00012054,2]
[324794410,1714335085406,-500.0,0.00012054,2]
[324794411,1714335085415,-200.33,0.00012054,2]
[324794412,1714335085426,-500.0,0.00012054,2]
[324794413,1714335085435,-500.0,0.00012054,2]
[324794414,1714335085445,-528.85,0.00012054,2]
[324794415,1714335085454,-500.0,0.00012054,2]
[324794416,1714335085463,-500.0,0.00012054,2]
[324794417,1714335085475,-500.0,0.00012054,2]
[324794418,1714335085484,-500.0,0.00012054,2]
[324794419,1714335085493,-500.0,0.00012054,2]
[324794420,1714335085502,-600.29,0.00012054,2]
[324794421,1714335085512,-528.41,0.00012054,2]
[324794422,1714335085522,-500.0,0.00012054,2]
[324794423,1714335085531,-500.0,0.00012054,2]
[324794424,1714335085540,-521.76,0.00012054,2]
[324794425,1714335085549,-500.0,0.00012054,2]
[324794426,1714335085558,-500.0,0.00012054,2]
[324794427,1714335085568,-552.84,0.00012054,2]
[324794428,1714335085577,-500.0,0.00012054,2]
[324794429,1714335085586,-500.0,0.00012054,2]
[324794430,1714335085597,-500.0,0.00012054,2]
[324794431,1714335085606,-553.62,0.00012054,2]
[324794432,1714335085615,-500.0,0.00012054,2]
[324794433,1714335085625,-500.0,0.00012054,2]
[324794434,1714335085634,-558.84,0.00012054,2]
[324794435,1714335085643,-718.95,0.00012054,2]
[324794436,1714335085652,-500.0,0.00012054,2]
[324794437,1714335085662,-548.37,0.00012054,2]
[324794438,1714335085671,-522.08,0.00012054,2]
[324794439,1714335085683,-500.0,0.00012054,2]
[324794440,1714335085702,-592.9687139,0.00012054,2]
[324794441,1714335085712,-500.0,0.00012054,2]
[324794442,1714335085723,-500.0,0.00012054,2]
[324794443,1714335085732,-500.0,0.00012054,2]
[324794444,1714335085741,-165.8181042,0.00012054,2]